[Event "27th OIBM 2024"]
[Site "Gmund am Tegernsee"]
[Date "2024.10.26"]
[Round "1.6"]
[White "Vogel, Roven"]
[Black "Hofmann, Lorenz"]
[Result "1-0"]
[ECO "E05"]
[WhiteElo "2559"]
[BlackElo "2105"]
[Annotator "TA"]
[PlyCount "107"]
[EventDate "2024.09.16"]
[EventType "swiss"]
[EventCountry "GER"]
[SourceTitle "playchess.com"]
[Source "ChessBase"]
[SourceQuality "1"]
[TimeControl "40/5400+30:1800+30"]

{[%evp 13,106,13,17,-12,-4,-9,8,0,24,0,33,11,0,-44,0,0,15,23,43,47,43,0,28,0,42,0,0,0,0,-15,63,62,117,-15,-9,-28,0,-56,-49,-46,-56,-104,-35,-92,-97,-113,-81,-64,-41,-50,-40,-77,0,0,0,0,0,-9,0,0,0,0,0,0,0,0,0,0,148,145,125,62,74,40,50,0,0,0,0,0,0,0,0,0,26,0,8,0,29972,29973,29997,29998,29998,29999,29999]} 1. d4 {[%emt 0:05:21]} d5 {[%emt 0:00:17]} 2. Nf3 {[%emt 0:00:17]} Nf6 {[%emt 0:00:05]} 3. c4 {[%emt 0:00:06]} e6 {[%emt 0:00:04]} 4. g3 {[%emt 0:01:17]} Be7 {[%emt 0:00:05]} 5. Bg2 {[%emt 0:00:09]} O-O {[%emt 0:00:05]} 6. O-O {[%emt 0:00:07]} dxc4 {[%emt 0:00:04]} 7. Qc2 {[%emt 0:00:09]} a6 {[%emt 0:00:16]} 8. Rd1 {[%emt 0:00:32][%cal Of3e5][%mdl 1024] White has compensation.} b5 {[%emt 0:09:33]} 9. Ne5 {[%emt 0:00:34] [#]} c6 $1 {[%emt 0:01:10]} 10. Nc3 {[%emt 0:06:00][%cal Ob2b3] The position is equal.} (10. b3 cxb3) 10... Bb7 {[%emt 0:02:14]} 11. Ne4 {[%emt 0:02:43]} (11. b3 {feels hotter.} b4 12. Na4 c3 13. Nc5) 11... Nfd7 {[%emt 0:12:31]} 12. h4 {[%emt 0:04:48]} Qc8 {[%emt 0:15:04]} 13. Nf3 {[%emt 0:07:14]} Rd8 {[%emt 0:05:45]} 14. Bf4 {[%emt 0:06:39]} Nf8 {[%emt 0:06:41]} 15. b3 {[%emt 0:05:46]} cxb3 {[%emt 0:06:54]} 16. axb3 {[%emt 0:00:09]} a5 {[%emt 0:08:46]} 17. h5 {[%emt 0:02:04]} h6 {[%emt 0:00:47]} 18. Ne5 {[%emt 0:07:25]} Ra7 {[%emt 0:07:19]} 19. Be3 {[%emt 0:04:56][%cal Od4d5]} Ra8 {[%emt 0:07:23]} 20. Nc5 {[%emt 0:08:33]} Bxc5 $1 {[%emt 0:00:08]} 21. dxc5 {[%emt 0:00:31]} Rxd1+ {[%emt 0:00:24]} (21... Nbd7 $11 22. Bf4 Nxe5 23. Bxe5 Rd5 24. Bxd5 exd5) 22. Rxd1 $14 {[%emt 0:00:29]} (22. Qxd1 Nbd7 23. Bf4 Nxc5 $15) 22... Nbd7 {[%emt 0:01:23]} (22... Qe8 $14) 23. Bd4 {[%emt 0:05:46] White is much more active.} ({White has to play} 23. Nxd7 $1 $16 Nxd7 24. Qd2) 23... Nxe5 {[%emt 0:01:07]} 24. Bxe5 {[%emt 0:00:03]} a4 {[%emt 0:01:33]} 25. b4 {[%emt 0:00:19]} (25. bxa4 $11 bxa4 26. Ra1) 25... f6 {[%emt 0:00:53]} 26. Bc3 {[%emt 0:02:08]} Qe8 {[%emt 0:00:09]} 27. Rd6 {[%emt 0:03:55]} (27. g4 $15) 27... Rd8 {[%emt 0:00:03]} (27... Qxh5 $17 28. f4 Rc8) 28. Qd3 {[%emt 0:03:07]} (28. Rxd8 $1 $15 Qxd8 29. f4) 28... Rxd6 $17 {[%emt 0:00:03]} 29. cxd6 {[%emt 0:00:10]} Bc8 {[%emt 0:06:29][%cal Oc8d7]} (29... Qxh5 $2 30. d7 Nxd7 31. Qxd7 $18) 30. f4 {[%emt 0:03:23]} Bd7 {[%emt 0:00:47]} 31. Bf3 $1 {[%emt 0:01:16]} Nh7 {[%emt 0:02:38]} 32. Qe3 {[%emt 0:02:07]} f5 {[%emt 0:00:29]} ({Better is} 32... e5 $1 $17 33. fxe5 fxe5 34. Qxe5 (34. Bxe5 Qe6 $15) 34... Qxe5 35. Bxe5 Ng5) 33. Qa7 $11 {[%emt 0:03:35][%cal Of3c6]} Nf6 {[%emt 0:00:31]} 34. Be5 {[%emt 0:01:59]} Qc8 {[%emt 0:00:48]} 35. Kf1 {[%emt 0:05:30]} Nd5 {[%emt 0:01:17]} 36. Qd4 {[%emt 0:01:36]} Qf8 {[%emt 0:00:26]} 37. g4 {[%emt 0:04:08]} fxg4 {[%emt 0:00:04]} 38. Bxg4 {[%emt 0:00:05]} Nf6 {[%emt 0:00:54]} 39. Bf3 {[%emt 0:00:20]} Qf7 {[%emt 0:01:11]} 40. Qa7 {[%emt 0:00:38]} Nd5 {[%emt 0:01:06] [#] Black is weak on the dark squares} (40... Kf8 $11) 41. Be4 $1 $16 {[%emt 0:07:24] Bg6 would kill now.} Qe8 {[%emt 0:09:24]} (41... Nxf4 $2 {too greedy.} 42. Qb8+ Qf8 (42... Be8 $2 43. Ke1 $18) 43. Qxf8+ Kxf8 44. Bxf4 $18) 42. Bg6 {[%emt 0:12:31] This pair of bishops is nice.} (42. Bd3 $16) 42... Qd8 $14 {[%emt 0:01:12][%cal Od5b6]} 43. e4 {[%emt 0:00:07]} Nb6 $1 {[%emt 0:01:39]} 44. f5 {[%emt 0:02:46]} ({White should play} 44. Qa5 $1 $14 Qb8 45. Bd4) 44... exf5 $1 $11 {[%emt 0:09:51]} ({Don't blunder} 44... Nc4 $2 45. fxe6 Nxe5 46. e7 $18) 45. exf5 $40 {[%emt 0:01:20][%mdl 128] White mounts an attack.} Nc4 {[%emt 0:02:11]} 46. Bg3 {[%emt 0:01:21]} Nd2+ {[%emt 0:03:25]} 47. Ke2 {[%emt 0:01:04] Threatens to win with Bh4.} Ne4 {[%emt 0:00:17]} 48. Be5 {[%emt 0:00:50]} Nf6 {[%emt 0:02:00]} 49. Bxf6 {[%emt 0:03:13]} gxf6 {[%emt 0:00:01]} 50. Kd2 {[%emt 0:00:58] aiming for Qe3.} Kf8 $2 {[%emt 0:01:24][%mdl 8192] [#]} (50... c5 $11) 51. Qe3 $1 {[%emt 0:01:41] White mates.} Be8 {[%emt 0:03:09]} 52. Qxh6+ {[%emt 0:00:11]} Kg8 {[%emt 0:00:03]} 53. Qh7+ {[%emt 0:00:05]} Kf8 {[%emt 0:00:04]} 54. Qh8# {[%emt 0:00:04] Weighted Error Value: White=0.21 (precise) /Black=0.29 (precise) .  Loses game:     	---       	Black=1      Mistake:       	White=6     	Black=5      Inaccurate:     	White=6     	Black=5      OK:         	White=12    	Black=8      Best:        	White=1     	Black=3      Strong:       	White=3     	Black=3} 1-0

[Event "27th OIBM 2024"]
[Site "Gmund am Tegernsee"]
[Date "2024.10.26"]
[Round "1.7"]
[White "Heigermoser, Robert"]
[Black "Stremavicius, Titas"]
[Result "0-1"]
[ECO "B30"]
[WhiteElo "2102"]
[BlackElo "2541"]
[Annotator "TA"]
[PlyCount "148"]
[EventDate "2024.09.16"]
[EventType "swiss"]
[EventCountry "GER"]
[SourceTitle "playchess.com"]
[Source "ChessBase"]
[SourceQuality "1"]
[TimeControl "40/5400+30:1800+30"]

{[%evp 13,148,16,16,12,18,27,18,24,17,27,22,14,13,6,29,35,16,8,40,24,39,31,31,-27,-23,-86,-64,-99,-123,-126,-39,-122,-114,-122,0,-37,-41,-54,-56,-65,-54,-58,-53,-93,-92,-77,-70,-85,-63,-150,-130,-147,-131,-187,-154,-187,-187,-179,-184,-173,-136,-134,-136,-193,-159,-227,-259,-223,-49,-81,-70,-58,-15,-78,-8,-154,-154,-160,-158,-150,-158,-154,-154,-168,-135,-245,0,0,0,0,10,10,10,-20,0,-8,-8,-8,-8,-8,-8,-8,-8,-8,-8,-8,-8,-8,-8,-8,-8,-8,-8,-8,-8,-8,0,-8,-8,-8,-8,-8,-8,-8,0,-8,0,-8,-8,-8,0,-4770,-4766,-29983,-29984,-29989,-788]} 1. e4 {[%emt 0:00:30][%cal Be2e4,Be4e5][%mdl 32]} c5 {[%emt 0:00:08]} 2. Nf3 {[%emt 0:00:13]} Nc6 {[%emt 0:00:07]} 3. Bb5 {[%emt 0:00:07]} Nf6 {[%emt 0:00:05][%cal Bg8f6,Bf6d5,Bd5c7][%mdl 32]} 4. Nc3 {[%emt 0:00:53]} Nd4 {[%emt 0:00:54]} 5. e5 {[%emt 0:03:30]} Nxb5 {[%emt 0:00:07]} 6. Nxb5 {[%emt 0:00:06]} Nd5 {[%emt 0:00:07]} 7. Ng5 {[%emt 0:02:17]} f6 {[%emt 0:00:03]} 8. Qf3 {[%emt 0:02:58]} Nc7 {[%emt 0:14:55]} 9. exf6 {[%emt 0:01:50]} exf6 {[%emt 0:00:06]} 10. Qh5+ {[%emt 0:00:16] The position is equal.} g6 {[%emt 0:00:08]} 11. Qe2+ {[%emt 0:00:14]} Ne6 {[%emt 0:00:44]} 12. Nxe6 {[%emt 0:00:50]} dxe6 {[%emt 0:00:04]} 13. b3 {[%emt 0:00:38]} Be7 {[%emt 0:28:12]} 14. Bb2 {[%emt 0:04:54]} O-O {[%emt 0:01:29]} 15. h4 {[%emt 0:05:18][%cal Bh2h4,Bh4h5][%mdl 32]} a6 {[%emt 0:02:28]} 16. Nc3 {[%emt 0:01:12]} b5 {[%emt 0:00:15]} 17. h5 {[%emt 0:09:16]} g5 {[%emt 0:00:14] [#]} 18. f4 {[%emt 0:18:39]} gxf4 $11 {[%emt 0:01:58]} 19. Qg4+ {[%emt 0:07:42]} (19. Rg1 $11 {remains equal.}) 19... Kh8 $17 {[%emt 0:00:08] ...e5 is the strong threat.} 20. h6 {[%emt 0:00:08]} Rg8 {[%emt 0:00:40] Prevents Qg7+.} 21. Qxf4 {[%emt 0:00:09]} Qd4 {[%emt 0:11:34]} (21... Rxg2 $6 22. O-O-O Bb7 23. Ne4 $11) (21... e5 $17 22. Qf3 Bg4) 22. Qe4 {[%emt 0:15:09]} (22. Qf3 $15 Qe5+ 23. Kf1) 22... Ra7 {[%emt 0:08:21]} (22... Qxe4+ $6 23. Nxe4 e5 (23... Rxg2 24. Nxf6 Bxf6 25. Bxf6+ Kg8 26. O-O-O $16) 24. Nxf6 Bxf6 25. O-O $11) 23. Rf1 {[%emt 0:15:07]} (23. O-O-O $2 b4 24. Qxd4 cxd4 $19) 23... Bb7 {[%emt 0:09:36]} (23... Rg6 $17 24. d3 (24. O-O-O $2 b4 $19) 24... b4 (24... Rxh6 25. Qc6 $17)) 24. Qxd4 {[%emt 0:02:39]} cxd4 {[%emt 0:00:04]} 25. Nxb5 {[%emt 0:00:06]} axb5 {[%emt 0:01:56]} 26. Bxd4 {[%emt 0:00:07] [#]} Rga8 {[%emt 0:01:33][%cal Ob7g2]} 27. Bxa7 {[%emt 0:01:18]} Rxa7 {[%emt 0:00:03]} 28. g3 {[%emt 0:02:42]} Kg8 {[%emt 0:01:05][%mdl 1024] Black has strong compensation. Black is more active.} 29. a4 {[%emt 0:01:12]} Bc6 {[%emt 0:01:01][%cal Rb5a4]} 30. a5 {[%emt 0:02:16]} Kf7 {[%emt 0:00:54]} 31. Rf4 {[%emt 0:01:55]} (31. a6 $15) 31... f5 {[%emt 0:00:26]} 32. b4 {[%emt 0:01:28]} Bd6 {[%emt 0:00:27]} 33. Rf1 {[%emt 0:00:38]} (33. Ra3 $17) 33... Bxb4 {[%emt 0:01:37][%cal Oc6g2]} 34. g4 {[%emt 0:00:26]} Kf6 {[%emt 0:00:32][%cal Ob4c5]} (34... Rxa5 35. Rxa5 Bxa5 36. gxf5 $17) (34... Bxa5 35. gxf5 Bd5 36. Rg1 $15) 35. gxf5 {[%emt 0:00:11]} exf5 {[%emt 0:00:04][%cal Ob4c5]} 36. Rg1 {[%emt 0:00:51]} Bf8 {[%emt 0:00:13] Prevents Rg7. A strong pair of Bishops.} (36... Rxa5 $2 37. Rxa5 Bxa5 38. Rg7 $18) 37. Rg8 {[%emt 0:00:39]} Bxh6 {[%emt 0:01:52] aiming for ...Re7+.} 38. Rc8 {[%emt 0:00:34]} (38. a6 $17 {is a better defense.}) 38... Bd7 $19 {[%emt 0:07:08]} 39. Rb8 {[%emt 0:00:27]} (39. Rh8 $17 {was necessary.}) 39... Bf4 $1 {[%emt 0:04:25]} 40. Rb6+ {[%emt 0:00:14]} Ke5 $2 {[%emt 0:03:26]} (40... Kg5 $19 41. Kf2 Bxd2) 41. a6 {[%emt 0:04:35]} Kd5 {[%emt 0:02:33] Threatens to win with ...Bc6.} 42. Ra3 $1 {[%emt 0:09:05]} Be5 {[%emt 0:11:32] White must now prevent ...Bc6.} 43. Rh3 {[%emt 0:07:27]} (43. Re3 $11 Ra8 44. Rh3) 43... Kc5 {[%emt 0:04:19]} (43... Bc6 $17 {Hoping for ...Kc5.} 44. Rh6 Be8) 44. Rhh6 {[%emt 0:01:18] [#]} (44. Rb7 $11 Rxb7 (44... Rxa6 $2 45. Rxd7 Re6 46. Kd1 $18) 45. axb7) 44... Be8 $1 $17 {[%emt 0:09:09]} 45. Rhe6 {[%emt 0:05:03]} Bc7 {[%emt 0:00:23]} 46. Rb7 {[%emt 0:01:06]} Rxb7 {[%emt 0:00:05]} 47. axb7 {[%emt 0:00:03]} Bc6 {[%emt 0:01:00]} 48. d4+ {[%emt 0:01:48]} Kd5 $1 {[%emt 0:00:02]} (48... Kxd4 $2 49. Rxc6 Bg3+ 50. Ke2 $18) 49. Rf6 {[%emt 0:00:12]} (49. Re7 $17 {was the only defense.} Kd6 50. Rxh7) 49... f4 $2 {[%emt 0:03:05]} ({Black should play} 49... Bxb7 $19 50. Rxf5+ Kxd4 51. Rxb5 Be4) 50. Rf7 $11 {[%emt 0:01:07][%csl LRc7,LRh7]} Bd6 {[%emt 0:01:51]} 51. c3 {[%emt 0:01:41]} b4 {[%emt 0:01:12]} 52. cxb4 {[%emt 0:02:31]} Kxd4 {[%emt 0:01:33]} 53. Rxh7 {[%emt 0:00:42]} Ke3 {[%emt 0:00:32]} 54. Re7+ {[%emt 0:00:40]} Be4 {[%emt 0:00:22]} (54... Bxe7 $2 55. b8=Q (55. b8=B Bxb4+ 56. Kd1 Ba4+ 57. Kc1 f3 58. Bc7 f2 59. Bb6+ Kf3 60. Bxf2 Kxf2 61. Kb2 Ke2 62. Ka2 Kd1 63. Kb1 Ba3 64. Ka2 Bc1 65. Kb1 Be8 66. Ka2 Kc2 67. Ka1 Bb2+ 68. Ka2 Bf7#) 55... Bh4+ 56. Kf1 $18) 55. Re8 {[%emt 0:00:29]} f3 {[%emt 0:00:17]} 56. Kf1 {[%emt 0:00:28]} Bg3 {[%emt 0:00:28]} 57. b5 {[%emt 0:00:32]} Bd6 {[%emt 0:00:55]} 58. Re6 {[%emt 0:00:27]} Bh2 {[%emt 0:00:22]} 59. Re8 {[%emt 0:00:25]} Bg3 {[%emt 0:00:04]} 60. b6 {[%emt 0:00:28]} Bh2 {[%emt 0:00:20]} 61. Re7 {[%emt 0:00:40]} Bd6 {[%emt 0:00:36] Some like it hot} 62. Re8 {[%emt 0:00:11]} Bg3 {[%emt 0:00:25]} 63. Re7 {[%emt 0:00:45]} (63. Kg1 $5) 63... Kd4 {[%emt 0:01:11]} 64. Rd7+ {[%emt 0:00:31]} Ke3 {[%emt 0:00:32]} 65. Re7 $1 {[%emt 0:00:12]} Bh2 {[%emt 0:00:29]} 66. Re8 {[%emt 0:00:17]} Bd6 {[%emt 0:00:05]} 67. Re6 {[%emt 0:00:39]} Bb8 {[%emt 0:00:26]} 68. Re8 {[%emt 0:00:15]} Bg3 {[%emt 0:00:03]} 69. Re7 {[%emt 0:00:10]} Kd4 {[%emt 0:00:30]} 70. Rd7+ {[%emt 0:00:52]} Kc5 {[%emt 0:01:03]} 71. Rc7+ {[%emt 0:01:04]} Kd6 {[%emt 0:00:55] ( -> ...Bd3+)} 72. Rf7 $2 {[%emt 0:00:37][%mdl 8192] [#]} (72. b8=B Bd3+ 73. Kg1 f2+ 74. Kg2 f1=Q+ $19 (74... f1=B+ $2 {perishes.} 75. Kxg3 Kd5 76. Ba7 $18)) (72. b8=Q $11 Bd3+ 73. Kg1 f2+ 74. Kg2 f1=Q+ (74... f1=B+ 75. Kxg3 Bf5 76. Kf4 Bd7 77. Qf8+ Ke6 78. Qf5+ Ke7 79. Rxd7+ Ke8 80. Qf7#) 75. Kxg3 Qe1+ 76. Kg4 Qe4+ 77. Kg3 Qe3+ 78. Kg4 Qe6+ 79. Kg3 (79. Kh4 Qe4+ 80. Kg3 Qe3+ 81. Kg4 Qe6+ 82. Kh4 Qh6+ 83. Kg3 Qe3+ $11) 79... Qe3+ 80. Kg2 Qd2+ 81. Kf3 (81. Kg3 Qe1+ 82. Kg4 Qe2+ 83. Kg3 Qe3+ $11) 81... Be2+ 82. Ke4 Bd3+ 83. Kf3 Qe2+ 84. Kg3 Qe3+) 72... Ke6 $1 $19 {[%emt 0:00:30]} 73. Rf8 {[%emt 0:00:30]} Bxb7 {[%emt 0:00:05]} 74. Rg8 {[%emt 0:00:22]} Ba6+ {[%emt 0:00:09] Weighted Error Value: White=0.23 (precise) /Black=0.22 (precise) .  Loses game:     	White=1     	---        Missed win:     	---       	Black=2      Mistake:       	White=10    	Black=3      Inaccurate:     	White=6     	Black=2      OK:         	White=26    	Black=21     Best:        	White=4     	Black=3      Strong:       	White=2     	Black=4} 0-1

[Event "27th OIBM 2024"]
[Site "Gmund am Tegernsee"]
[Date "2024.10.26"]
[Round "1.8"]
[White "Amar, Elham"]
[Black "Fauth, Dietmar"]
[Result "1-0"]
[ECO "B68"]
[WhiteElo "2540"]
[BlackElo "2101"]
[Annotator "TA"]
[PlyCount "47"]
[EventDate "2024.09.16"]
[EventType "swiss"]
[EventCountry "GER"]
[SourceTitle "playchess.com"]
[Source "ChessBase"]
[SourceQuality "1"]
[TimeControl "40/5400+30:1800+30"]

{[%evp 19,47,45,51,0,13,6,56,61,65,64,70,91,193,194,180,168,274,231,331,316,397,390,387,383,501,516,524,517,516,518]} 1. e4 {[%emt 0:00:07]} c5 {[%emt 0:00:11]} 2. Nf3 {[%emt 0:00:05]} d6 {[%emt 0:00:22]} 3. d4 {[%emt 0:00:07]} cxd4 {[%emt 0:00:07]} 4. Nxd4 {[%emt 0:00:10]} Nf6 {[%emt 0:00:13]} 5. Nc3 {[%emt 0:00:04]} Nc6 {[%emt 0:00:07]} 6. Bg5 {[%emt 0:00:18]} e6 {[%emt 0:00:37]} 7. Qd2 {[%emt 0:00:37]} a6 {[%emt 0:00:07]} 8. O-O-O {[%emt 0:00:24]} Be7 {[%emt 0:00:27]} 9. f4 {[%emt 0:00:29]} Bd7 {[%emt 0:01:13]} 10. Nf3 {[%emt 0:00:15]} b5 {[%emt 0:08:18]} 11. a3 {[%emt 0:00:06]} Qa5 {[%emt 0:08:08]} 12. Kb1 {[%emt 0:03:40] Threatens to win with e5.} Rb8 {[%emt 0:09:03]} ({Black should try} 12... h6 $11 13. Bh4 Rd8) 13. e5 $1 $14 {[%emt 0:03:22] White is slightly better.} b4 $1 {[%emt 0:12:06]} 14. axb4 {[%emt 0:00:12]} Qxb4 {[%emt 0:05:03]} 15. b3 {[%emt 0:00:13]} Na5 {[%emt 0:05:24]} 16. exf6 $18 {[%emt 0:11:54]} gxf6 {[%emt 0:01:15] [#] Strongly threatening ...Nxb3.} 17. Bh4 {[%emt 0:03:19][%cal Of3d4] And now Nd4! would win.} d5 {[%emt 0:10:14]} (17... e5 {is a better defense.}) 18. Nxd5 {[%emt 0:04:39]} (18. Bxa6 Nxb3 19. cxb3 Qxb3+ 20. Ka1 Bb4 $19) 18... exd5 {[%emt 0:00:47]} (18... Qxd2 $142 19. Nc7+ (19. Nxd2 exd5 20. Bxa6 Bf5 $16) (19. Nxf6+ Bxf6 20. Rxd2 Bxh4 $18) 19... Kd8 20. Nxe6+ (20. Rxd2 Kxc7 21. Bxa6 Nxb3 $18) 20... fxe6 21. Rxd2 Nxb3 22. cxb3 Rxb3+ 23. Kc2 Rb6) 19. Qxb4 {[%emt 0:00:04]} (19. Qxd5 $2 {perishes.} Nxb3 20. cxb3 (20. Qxd7+ $2 Kf8 $19) 20... Be6 $19) (19. Bxa6 $2 Qb6 20. Qxd5 Be6 $19) 19... Rxb4 {[%emt 0:06:30]} 20. Be1 {[%emt 0:00:32]} (20. Rxd5 Nxb3 21. cxb3 Rxb3+ 22. Kc1 Ra3 $18) 20... Nc6 {[%emt 0:03:10]} 21. Bxb4 {[%emt 0:00:12]} ({Weaker is} 21. Rxd5 Rxf4 22. Bxa6 Nb4 $16) ({Less strong is} 21. Bxa6 Rb6 $18) 21... Nxb4 {[%emt 0:00:30]} 22. c3 {[%emt 0:00:48] White is clearly winning.} Nc6 {[%emt 0:01:04]} 23. Bxa6 {[%emt 0:00:25]} O-O {[%emt 0:00:40]} 24. Bb5 {[%emt 0:00:38] Weighted Error Value: White=0.08 (flawless) /Black=0.53.  Mistake:       	---       	Black=4      Inaccurate:     	---       	Black=1      OK:         	White=8     	Black=3      Best:        	White=3     	---        Strong:       	White=1     	Black=1} 1-0

[Event "27th OIBM 2024"]
[Site "Gmund am Tegernsee"]
[Date "2024.10.26"]
[Round "1.9"]
[White "Konik, Michael"]
[Black "Quparadze, Giga"]
[Result "0-1"]
[ECO "B23"]
[WhiteElo "2099"]
[BlackElo "2522"]
[Annotator "TA"]
[PlyCount "78"]
[EventDate "2024.09.16"]
[EventType "swiss"]
[EventCountry "GER"]
[SourceTitle "playchess.com"]
[Source "ChessBase"]
[SourceQuality "1"]
[TimeControl "40/5400+30:1800+30"]

{[%evp 16,78,0,0,4,0,21,24,48,0,20,0,12,8,16,-14,-14,-70,-57,-94,-94,-80,-102,-126,-126,-112,-114,-128,-126,-116,-123,-160,-141,-162,-152,-149,-131,-518,-239,-218,-223,-352,-363,-342,-197,-204,-191,-220,-157,-156,-148,-229,-248,-300,-297,-420,-413,-414,-402,-593,-577,-1261,-1333,-29995,-29996]} 1. e4 {[%emt 0:00:02]} c5 {[%emt 0:00:07]} 2. Nc3 {[%emt 0:00:08]} e6 {[%emt 0:00:09]} 3. f4 {[%emt 0:00:22]} d5 {[%emt 0:00:10]} 4. Nf3 {[%emt 0:01:22]} d4 {[%emt 0:00:35]} 5. Ne2 {[%emt 0:00:36]} Nc6 {[%emt 0:01:13]} 6. d3 {[%emt 0:00:28]} Bd6 {[%emt 0:01:27]} 7. g3 {[%emt 0:06:27]} f6 {[%emt 0:00:31]} 8. Bg2 {[%emt 0:00:44]} Nge7 {[%emt 0:00:13]} 9. O-O {[%emt 0:00:53]} O-O {[%emt 0:01:14]} 10. c3 {[%emt 0:06:46]} dxc3 {[%emt 0:00:08]} 11. bxc3 {[%emt 0:00:10]} b6 {[%emt 0:00:28] White has an edge.} 12. Be3 {[%emt 0:07:05]} (12. e5 $14 {should be considered.}) 12... Ba6 {[%emt 0:00:09]} 13. Qc2 {[%emt 0:01:26]} Kh8 {[%emt 0:03:06]} 14. Rad1 {[%emt 0:02:10]} Qe8 {[%emt 0:00:54]} 15. Nh4 {[%emt 0:08:25]} Rd8 {[%emt 0:00:23]} 16. f5 {[%emt 1:01:26]} (16. Rf2 $11) 16... exf5 $15 {[%emt 0:00:27]} 17. Nxf5 {[%emt 0:00:00]} Nxf5 {[%emt 0:00:08]} 18. Rxf5 {[%emt 0:00:00]} Ne5 {[%emt 0:00:34]} 19. d4 {[%emt 0:00:00]} cxd4 {[%emt 0:00:07]} 20. Bxd4 {[%emt 0:00:00]} Bc5 {[%emt 0:02:00]} 21. Nc1 {[%emt 0:00:00]} Ng4 {[%emt 0:04:39] [#] ...Bxd4+ is the strong threat.} 22. Qd2 {[%emt 0:00:00]} Bc4 {[%emt 0:02:31] Against Rd5} 23. h3 {[%emt 0:00:00]} Ne5 {[%emt 0:00:22]} 24. Kh2 {[%emt 0:00:00]} Be6 {[%emt 0:00:40]} 25. Rf4 {[%emt 0:00:00]} Bd6 {[%emt 0:00:24] Black has more active pieces.} 26. Rh4 $2 {[%emt 0:00:00][%mdl 8192] Now White is beyond hope.} (26. Rff1 $17 {is tougher.}) 26... Ng6 {[%emt 0:00:49]} (26... g5 $142 27. Rh6 Kg7 28. Rxf6 Kxf6) 27. Rh5 $19 {[%emt 0:00:00]} Nf4 {[%emt 0:00:06] Inhibits Nd3.} 28. Rh4 {[%emt 0:00:00]} (28. Rxh7+ $142 Kxh7 29. gxf4) 28... Nxg2 {[%emt 0:00:07]} 29. Kxg2 {[%emt 0:00:00]} Qg6 {[%emt 0:01:24]} (29... Be5 $142 30. Qe2 g5) 30. Qe3 {[%emt 0:00:00]} Kg8 {[%emt 0:00:13]} 31. Ne2 {[%emt 0:00:00]} Rfe8 {[%emt 0:00:32]} 32. Nf4 {[%emt 0:01:52] Wards off Bd5} Bxf4 {[%emt 0:00:05]} 33. Rxf4 {[%emt 0:00:23] [#] White is weak on the light squares} (33. Qxf4 $17 {keeps fighting.} Qf7 (33... Bxa2 $2 34. Qf2 $19) 34. Qf2) 33... Bxh3+ $1 {[%emt 0:00:24][%mdl 512]} 34. Kh2 {[%emt 0:01:28]} (34. Kxh3 $2 {too greedy.} Qh5+ 35. Kg2 Qxd1 $19) (34. Kf2 h5) 34... Bc8 {[%emt 0:00:07] ...Qh5+ would now be deadly.} 35. Rdf1 {[%emt 0:01:01]} (35. Qe2 $142) 35... Bb7 {[%emt 0:00:17][%cal Rb7e4]} 36. Re1 {[%emt 0:02:08]} f5 {[%emt 0:02:50][%cal Rb7e4]} 37. Qe2 {[%emt 0:02:32]} (37. Qd3 $142 Bxe4 (37... fxe4 $2 38. Qc4+ Rd5 39. Re3 $19) 38. Qc4+ Qe6 39. Qxe6+ Rxe6 40. Kg1) 37... Rxe4 {[%emt 0:00:24]} 38. Qc4+ {[%emt 0:00:58]} Bd5 {[%emt 0:00:06] ( -> ...Qh5+)} 39. Qc7 {[%emt 0:00:15]} Qh6+ {[%emt 0:00:05] Weighted Error Value: White=0.89/Black=0.31.  Loses game:     	White=1     	---        Mistake:       	White=6     	Black=2      Inaccurate:     	White=5     	---        OK:         	White=6     	Black=16     Best:        	---       	Black=2} 0-1

[Event "27th OIBM 2024"]
[Site "Gmund am Tegernsee"]
[Date "2024.10.26"]
[Round "1.10"]
[White "Heberla, Bartlomiej"]
[Black "Ciak, Rene"]
[Result "1-0"]
[ECO "D85"]
[WhiteElo "2501"]
[BlackElo "2097"]
[Annotator "TA"]
[PlyCount "33"]
[EventDate "2024.09.16"]
[EventType "swiss"]
[EventCountry "GER"]
[SourceTitle "playchess.com"]
[Source "ChessBase"]
[SourceQuality "1"]
[TimeControl "40/5400+30:1800+30"]

{[%evp 14,33,26,12,31,16,42,33,83,51,153,116,131,91,71,92,109,66,264,271,746,745]} 1. d4 {[%emt 0:00:03]} Nf6 {[%emt 0:00:05]} 2. c4 {[%emt 0:00:11]} g6 {[%emt 0:01:19]} 3. Nc3 {[%emt 0:00:12]} d5 {[%emt 0:00:27]} 4. cxd5 {[%emt 0:00:08]} Nxd5 {[%emt 0:00:04]} 5. Bd2 {[%emt 0:00:32]} Bg7 {[%emt 0:01:26]} 6. e4 {[%emt 0:00:11]} Nxc3 {[%emt 0:03:57]} 7. Bxc3 {[%emt 0:00:15]} c5 {[%emt 0:00:30]} 8. d5 {[%emt 0:00:20]} Bxc3+ {[%emt 0:01:12]} 9. bxc3 {[%emt 0:00:03]} Qa5 {[%emt 0:09:18]} 10. Qd2 {[%emt 0:02:05]} b5 {[%emt 0:08:50]} (10... e6 $14) 11. h4 {[%emt 0:01:47][%cal Bh2h4,Bh4h5][%mdl 32]} e6 {[%emt 0:33:29]} (11... Nd7 $14) 12. h5 $16 {[%emt 0:01:12] Strongly threatening Nf3.} exd5 {[%emt 0:06:01]} 13. exd5 {[%emt 0:01:37]} O-O {[%emt 0:03:05]} 14. Bd3 {[%emt 0:02:58] And now Kf1 would win.} Nd7 {[%emt 0:11:18]} 15. Nf3 {[%emt 0:00:34] [#] Prevents Ne5. Hoping for hxg6.} Re8+ $2 {[%emt 0:08:35]} (15... c4 $14 16. Bc2 Nf6) 16. Kf1 $18 {[%emt 0:01:54]} Ne5 $2 {[%emt 0:04:39]} (16... Nf8 17. hxg6 hxg6) 17. Re1 {[%emt 0:01:09] Weighted Error Value: White=0.16 (very precise) /Black=0.70.  Loses game:     	---       	Black=1      Mistake:       	---       	Black=3      Inaccurate:     	White=3     	Black=1      OK:         	White=4     	---        Best:        	White=1     	Black=2} 1-0